bitfinex/quotes_BTCUSD_20250522
["timestamp","ask_amount","ask_price","bid_price","bid_amount"]
[1747923849134,0.27080693,110950.0,110940.0,0.27231227]
[1747923849980,0.18126137,110950.0,110940.0,0.27231227]
[1747923850201,0.01201266,110950.0,110940.0,0.5262036]
[1747923850410,0.21029934,110950.0,110940.0,6.00574916]
[1747923850615,0.20128733,110950.0,110940.0,0.56549227]
[1747923850826,0.20128733,110950.0,110940.0,1.20143227]
[1747923851040,0.20128733,110950.0,110940.0,1.23463227]
[1747923851247,0.19828733,110950.0,110940.0,1.26503227]
[1747923851464,0.19828733,110950.0,110940.0,1.26603227]
[1747923852137,0.18927427,110950.0,110940.0,1.44630989]
[1747923852359,0.01802394,110960.0,110950.0,0.25567427]
[1747923852596,0.18025523,110970.0,110960.0,0.24664513]
[1747923852801,0.18926667,110970.0,110960.0,5.38656]
[1747923853698,0.18926667,110970.0,110960.0,2.25836]
[1747923854528,0.18926667,110970.0,110960.0,2.28416]
[1747923854767,0.18926667,110970.0,110960.0,2.29336415]
[1747923854948,0.19126667,110970.0,110960.0,2.29336415]
[1747923855225,0.19226667,110970.0,110960.0,2.29336415]
[1747923855447,0.19226667,110970.0,110960.0,1.63086415]
[1747923856117,0.19226667,110970.0,110960.0,1.85232145]
[1747923856338,0.19226667,110970.0,110960.0,1.86133354]
[1747923856582,0.18325523,110970.0,110960.0,1.66306415]
[1747923856817,0.18925722,110960.0,110950.0,0.729]
[1747923857034,0.19826923,110960.0,110950.0,5.95926137]
[1747923857248,0.20728099,110960.0,110950.0,6.70053435]
[1747923857487,0.20728099,110960.0,110950.0,6.70954717]
[1747923857706,0.00901152,110960.0,110950.0,6.72757257]
[1747923857924,0.01101128,110970.0,110960.0,0.54728115]
[1747923858152,0.002,110970.0,110960.0,5.67009283]
[1747923858381,0.02703286,110970.0,110960.0,5.75963839]
[1747923858611,0.03604414,110970.0,110960.0,5.75963839]
[1747923858809,0.0450555,110970.0,110960.0,5.75963839]
[1747923859462,0.21627368,110970.0,110960.0,5.74261495]
[1747923859686,0.03604479,110970.0,110960.0,5.76063856]
[1747923859914,0.02703277,110970.0,110960.0,5.76063856]
[1747923860159,0.03604397,110970.0,110960.0,5.76063856]
[1747923860386,0.00901047,110980.0,110970.0,0.02703334]
[1747923860610,0.19823383,110980.0,110970.0,5.72747259]
[1747923860831,0.19823383,110980.0,110970.0,2.543]
[1747923861047,0.19823383,110980.0,110970.0,2.81312]
[1747923861536,0.19823383,110980.0,110970.0,2.24402]
[1747923861973,0.19823383,110980.0,110970.0,1.9419]
[1747923862208,0.18925722,110960.0,110950.0,0.41145792]
[1747923862431,0.18825722,110960.0,110950.0,1.493926]
[1747923862644,0.18825722,110960.0,110950.0,0.536606]
[1747923862893,0.18825722,110960.0,110950.0,1.193926]
[1747923863609,0.18825722,110960.0,110950.0,0.389]
[1747923863838,0.18927427,110950.0,110940.0,0.67051227]
[1747923864065,0.34101983,110950.0,110940.0,0.40039227]
[1747923864532,0.33901983,110950.0,110940.0,0.40039227]
[1747923865001,0.34001983,110950.0,110940.0,0.40039227]
[1747923865204,0.69456068,110950.0,110940.0,0.00219227]
[1747923865931,0.32166068,110950.0,110940.0,0.00219227]
[1747923866884,0.27581983,110950.0,110940.0,0.00219227]
[1747923867120,0.30991983,110950.0,110940.0,0.00219227]
[1747923867311,0.34021983,110950.0,110940.0,0.00219227]
[1747923868219,0.37467289,110950.0,110940.0,0.00219227]
[1747923868908,0.32446068,110950.0,110940.0,0.00219227]
[1747923869154,0.27781983,110950.0,110940.0,0.00219227]
[1747923870135,0.18827427,110950.0,110940.0,5.05219227]
[1747923870363,0.18827427,110950.0,110940.0,2.49629227]
[1747923870574,0.18827427,110950.0,110940.0,0.57349227]
[1747923872296,0.18827427,110950.0,110940.0,0.84365227]
[1747923875050,0.18827427,110950.0,110940.0,0.57349227]
[1747923875266,0.27781983,110950.0,110940.0,0.00219227]
[1747923881014,0.27781983,110950.0,110940.0,0.27235227]
[1747923882687,0.31091983,110950.0,110940.0,0.00219227]
[1747923884408,0.27781983,110950.0,110940.0,0.00219227]
[1747923884627,0.18827427,110950.0,110940.0,0.06569227]
[1747923884850,0.27781983,110950.0,110940.0,0.00219227]
[1747923885498,0.40296718,110950.0,110940.0,0.00219227]
[1747923885724,1.10528051,110950.0,110940.0,0.00219227]
[1747923885945,1.09528051,110950.0,110940.0,0.00219227]
[1747923886160,1.08528051,110950.0,110940.0,0.00219227]
[1747923886586,1.08328051,110950.0,110940.0,0.00219227]
[1747923886828,1.08428051,110950.0,110940.0,0.00219227]
[1747923887047,1.5635843,110950.0,110940.0,0.00219227]
[1747923887478,1.5635843,110950.0,110920.0,0.002]
[1747923887479,0.29666353,110930.0,110920.0,0.002]
[1747923887702,0.73806465,110930.0,110920.0,0.002]
[1747923888415,1.06806465,110930.0,110920.0,0.002]
[1747923889066,1.07963407,110930.0,110920.0,0.002]
[1747923889282,1.09045122,110930.0,110920.0,0.002]
[1747923890345,1.09545122,110930.0,110920.0,0.002]
[1747923890586,0.01803206,110910.0,110900.0,0.00204]
[1747923890826,0.01803206,110910.0,110880.0,0.002]
[1747923890827,0.22293507,110890.0,110880.0,0.002]
[1747923891054,0.22293507,110890.0,110880.0,0.00215229]
[1747923891055,0.67220214,110890.0,110880.0,0.00215229]
[1747923891533,0.58268063,110890.0,110880.0,0.00215229]
[1747923891794,0.64678063,110890.0,110880.0,0.00215229]
[1747923893203,0.98678063,110890.0,110880.0,0.00215229]
[1747923893786,0.99535005,110890.0,110880.0,0.00215229]
[1747923894009,1.44954202,110890.0,110880.0,0.00215229]
[1747923894272,1.54206353,110890.0,110880.0,0.00215229]
[1747923894630,1.08487156,110890.0,110880.0,0.00215229]
[1747923895026,1.08887156,110890.0,110880.0,0.00215229]
[1747923896399,1.01435005,110890.0,110880.0,0.00215229]
[1747923897141,1.00435005,110890.0,110880.0,0.00215229]
[1747923898074,0.3055092,110890.0,110880.0,0.00215229]
[1747923898511,0.32005005,110890.0,110880.0,0.00215229]
[1747923898730,0.34458063,110890.0,110880.0,0.00215229]
[1747923899409,0.31148063,110890.0,110880.0,0.00215229]
[1747923900356,0.34274585,110890.0,110880.0,0.00215229]
[1747923900566,0.18042399,110850.0,110830.0,0.20752328]
[1747923900774,0.18044027,110840.0,110830.0,0.20803133]
[1747923900987,0.1894622,110840.0,110830.0,1.41954805]
[1747923901658,0.1894622,110840.0,110830.0,0.57294805]
[1747923901895,0.1894622,110840.0,110830.0,0.85165784]
[1747923902098,0.1894622,110840.0,110830.0,0.18545784]
[1747923902319,0.1894622,110840.0,110830.0,0.85365784]
[1747923902540,0.1894622,110840.0,110830.0,0.40869784]
[1747923902755,0.1894622,110840.0,110830.0,1.08795784]
[1747923903364,0.1894622,110840.0,110830.0,1.07960805]
[1747923903586,0.1894622,110840.0,110830.0,1.14230805]
[1747923903978,0.1894622,110840.0,110830.0,1.14430805]
[1747923904369,0.1894622,110840.0,110830.0,1.14230805]
[1747923904729,0.27900776,110840.0,110830.0,0.67270805]
[1747923904913,0.61900776,110840.0,110830.0,0.41070242]
[1747923905366,0.61900776,110840.0,110830.0,0.68106242]
[1747923905968,0.61900776,110840.0,110830.0,0.67270805]
[1747923907142,0.66454861,110840.0,110830.0,0.00050805]
[1747923907421,0.96564861,110840.0,110830.0,0.00250805]
[1747923907918,0.90394861,110840.0,110830.0,0.00150805]
[1747923908139,0.63354861,110840.0,110830.0,0.00050805]
[1747923908397,0.19853745,110810.0,110800.0,1.15064805]
[1747923908610,0.19853745,110810.0,110800.0,1.15079984]
[1747923909047,0.19853745,110810.0,110800.0,5.62625898]
[1747923909269,0.19853745,110810.0,110800.0,3.78585898]
[1747923909993,0.19853745,110810.0,110800.0,2.78069898]
[1747923910230,0.28808301,110810.0,110800.0,0.42713898]
[1747923910450,0.28808301,110810.0,110800.0,1.09753898]
[1747923911118,0.28808301,110810.0,110800.0,1.09953898]
[1747923911333,0.28808301,110810.0,110800.0,0.82909898]
[1747923911963,0.28808301,110810.0,110800.0,0.82709898]
[1747923912982,0.28808301,110810.0,110800.0,0.82809898]
[1747923913187,0.19853745,110810.0,110800.0,0.89379898]
[1747923913600,0.19853745,110810.0,110800.0,1.80969898]
[1747923914175,0.19853745,110810.0,110800.0,1.81069898]
[1747923914364,0.19853745,110810.0,110800.0,2.72349898]
[1747923914563,0.28808301,110810.0,110800.0,0.82709898]
[1747923915261,0.67422386,110810.0,110800.0,0.43801898]
[1747923915476,0.67422386,110810.0,110800.0,0.04005898]
[1747923915708,0.67422386,110810.0,110800.0,0.03905898]
[1747923915929,0.28908301,110810.0,110800.0,0.03905898]
[1747923916350,0.28908301,110810.0,110800.0,0.07105898]
[1747923916563,0.28908301,110810.0,110800.0,0.03905898]
[1747923917008,0.28908301,110810.0,110800.0,0.03805898]
[1747923917458,0.29008301,110810.0,110800.0,0.03805898]
[1747923918108,0.29008301,110810.0,110800.0,0.30853898]
[1747923918847,0.29008301,110810.0,110800.0,0.10275898]
[1747923918848,0.20053745,110810.0,110800.0,0.10275898]
[1747923919064,0.20053745,110810.0,110800.0,5.82127898]
[1747923919277,0.20053745,110810.0,110800.0,0.96487898]
[1747923919539,0.20053745,110810.0,110800.0,0.90847898]
[1747923919747,0.19953745,110810.0,110800.0,0.90847898]
[1747923920394,0.19953745,110810.0,110800.0,0.63799898]
[1747923920608,0.28808301,110810.0,110800.0,0.87577898]
[1747923920813,0.28808301,110810.0,110800.0,0.70657898]
[1747923921023,0.28808301,110810.0,110800.0,0.86227898]
[1747923921234,0.28808301,110810.0,110800.0,0.19275898]
[1747923921462,0.28808301,110810.0,110800.0,0.86127898]
[1747923921679,0.28808301,110810.0,110800.0,0.16045898]
[1747923921895,0.33494005,110810.0,110800.0,0.04005898]
[1747923922135,0.28808301,110810.0,110800.0,0.04005898]
[1747923922799,0.28808301,110810.0,110800.0,0.70757898]
[1747923923232,0.28808301,110810.0,110800.0,0.70857898]
[1747923923454,0.28808301,110810.0,110800.0,5.79047898]
[1747923923877,0.28808301,110810.0,110800.0,0.87581984]
[1747923925189,0.19853745,110810.0,110800.0,0.87581984]
[1747923925410,0.28808301,110810.0,110800.0,0.03169984]
[1747923925626,0.28808301,110810.0,110800.0,0.70025984]
[1747923925843,0.28808301,110810.0,110800.0,0.7086674]
[1747923926317,0.28808301,110810.0,110800.0,0.0401074]
[1747923926532,0.28808301,110810.0,110800.0,0.7076674]
[1747923926924,0.28908301,110810.0,110800.0,0.7066674]
[1747923927148,0.29008301,110810.0,110800.0,0.7066674]
[1747923927398,0.29008301,110810.0,110800.0,0.4361874]
[1747923927609,0.29008301,110810.0,110800.0,0.7066674]
[1747923928253,0.29008301,110810.0,110800.0,0.7059874]
[1747923929993,0.29008301,110810.0,110800.0,0.4354674]
[1747923930229,0.29008301,110810.0,110800.0,0.0381074]
[1747923930862,0.29008301,110810.0,110800.0,0.3086274]
[1747923931075,0.29008301,110810.0,110800.0,0.0381074]
[1747923931330,0.63008301,110810.0,110800.0,0.3086274]
[1747923935702,0.63008301,110810.0,110800.0,0.0381074]
[1747923936581,0.66158301,110810.0,110800.0,0.0381074]
[1747923936836,0.67612386,110810.0,110800.0,0.0381074]
[1747923937071,0.86533633,110810.0,110800.0,0.0381074]
[1747923937295,0.89041324,110810.0,110800.0,0.0381074]
[1747923937929,0.73220077,110810.0,110800.0,0.0381074]
[1747923938192,0.75041322,110810.0,110800.0,0.0381074]
[1747923938633,0.75741322,110810.0,110800.0,0.0381074]
[1747923939080,0.72541322,110810.0,110800.0,0.0381074]
[1747923939325,0.72541322,110810.0,110800.0,0.02969984]
[1747923939533,0.84813473,110810.0,110800.0,0.02969984]
[1747923939752,0.75861322,110810.0,110800.0,0.02969984]
[1747923939978,0.67470077,110810.0,110800.0,0.02969984]
[1747923940855,0.73760077,110810.0,110800.0,0.02969984]
[1747923941756,0.68002386,110810.0,110800.0,0.02969984]
[1747923943100,0.63508301,110810.0,110800.0,0.02969984]
[1747923943523,0.29508301,110810.0,110800.0,0.02969984]
[1747923944266,0.34212386,110810.0,110800.0,0.02969984]
[1747923944491,0.37492386,110810.0,110800.0,0.02969984]
[1747923944825,0.34212386,110810.0,110800.0,0.02969984]
[1747923945043,0.30962386,110810.0,110800.0,0.02969984]
[1747923946765,0.29508301,110810.0,110800.0,0.02969984]
[1747923946975,0.29508301,110810.0,110800.0,0.30025984]
[1747923947198,0.29508301,110810.0,110800.0,0.02969984]
[1747923947414,0.29508301,110810.0,110800.0,5.81209984]
[1747923947415,0.20553745,110810.0,110800.0,5.81209984]
[1747923947855,0.19853745,110810.0,110800.0,5.81209984]
[1747923948113,0.20053745,110810.0,110800.0,0.97829984]
[1747923948331,0.20153745,110810.0,110800.0,0.97829984]
[1747923948783,0.19953745,110810.0,110800.0,0.97829984]
[1747923949257,0.19953745,110810.0,110800.0,0.97929984]
[1747923949502,0.19853745,110810.0,110800.0,0.97929984]
[1747923949965,0.19853745,110810.0,110800.0,0.98029984]
[1747923951251,0.19853745,110810.0,110800.0,0.20289984]
[1747923951252,0.28808301,110810.0,110800.0,0.20289984]
[1747923951466,0.28808301,110810.0,110800.0,0.69961984]
[1747923952146,0.28808301,110810.0,110800.0,2.34621984]
[1747923952933,0.28808301,110810.0,110800.0,0.69961984]
[1747923953244,0.28808301,110810.0,110800.0,3.40441984]
[1747923953698,0.28808301,110810.0,110800.0,2.34391984]
[1747923953699,0.19853745,110810.0,110800.0,2.34391984]
[1747923953912,0.19853745,110810.0,110800.0,1.07459984]
[1747923954097,0.19853745,110810.0,110800.0,0.69961984]
[1747923954310,0.28808301,110810.0,110800.0,0.42909984]
[1747923954527,0.28808301,110810.0,110800.0,0.69961984]
[1747923954959,0.82593423,110810.0,110800.0,0.03169984]
[1747923955606,0.83449461,110810.0,110800.0,0.03069984]
[1747923955842,0.78763757,110810.0,110800.0,0.03069984]
[1747923956059,0.75443757,110810.0,110800.0,0.02969984]
[1747923956509,0.65418424,110810.0,110800.0,0.02969984]
[1747923956759,0.64562386,110810.0,110800.0,0.02969984]
[1747923957652,0.64662386,110810.0,110800.0,0.02969984]
[1747923958070,0.30662386,110810.0,110800.0,0.02969984]
[1747923958296,0.30562386,110810.0,110800.0,0.02969984]
[1747923959138,0.30862386,110810.0,110800.0,0.02969984]
[1747923959987,0.29408301,110810.0,110800.0,0.02969984]
[1747923960410,0.30862386,110810.0,110800.0,0.02969984]
[1747923960625,0.33872386,110810.0,110800.0,0.02969984]
[1747923961072,0.30862386,110810.0,110800.0,0.02969984]
[1747923961305,0.64862386,110810.0,110800.0,0.02969984]
[1747923961951,0.73456499,110810.0,110800.0,0.02969984]
[1747923962174,0.71202386,110810.0,110800.0,0.02969984]
[1747923963084,1.43275507,110810.0,110800.0,0.02969984]
[1747923963286,0.98353202,110790.0,110780.0,0.00204]
[1747923963576,0.98353202,110790.0,110780.0,0.00213173]
[1747923963577,1.75035758,110790.0,110780.0,0.00213173]
[1747923963752,1.83987909,110790.0,110780.0,0.00213173]
[1747923964397,1.84843947,110790.0,110780.0,0.00213173]
[1747923964610,1.47042159,110790.0,110780.0,0.00213173]
[1747923964818,1.38090008,110790.0,110780.0,0.00213173]
[1747923965017,1.39090008,110790.0,110780.0,0.00213173]
[1747923965224,1.39590008,110790.0,110780.0,0.00213173]
[1747923965673,1.75391796,110790.0,110780.0,0.00213173]
[1747923965908,0.65622008,110790.0,110780.0,0.00213173]
[1747923966107,0.30167923,110790.0,110780.0,0.00213173]
[1747923966364,0.30467923,110790.0,110780.0,0.00213173]
[1747923966571,0.37992008,110790.0,110780.0,0.00213173]
[1747923966787,0.3713597,110790.0,110780.0,0.00213173]
[1747923967005,1.55065909,110790.0,110780.0,0.00213173]
[1747923967227,1.56965909,110790.0,110780.0,0.00213173]
[1747923967460,1.55965909,110790.0,110780.0,0.00213173]
[1747923967677,1.56065909,110790.0,110780.0,0.00213173]
[1747923968313,1.56721947,110790.0,110780.0,0.00213173]
[1747923969219,1.56921947,110790.0,110780.0,0.00213173]
[1747923969366,0.02709414,110720.0,110710.0,0.10819329]
[1747923969740,0.02709414,110720.0,110710.0,5.57360687]
[1747923969741,0.02709389,110720.0,110710.0,5.57360687]
[1747923969957,0.20773029,110720.0,110710.0,5.56457435]
[1747923970182,0.01806137,110730.0,110720.0,0.18966745]
[1747923970392,0.20771162,110730.0,110720.0,5.23063583]
[1747923970616,0.20771162,110730.0,110720.0,5.50123583]
[1747923970833,0.01805941,110740.0,110720.0,5.52832996]
[1747923971246,0.03611956,110740.0,110730.0,5.33212292]
[1747923971249,0.00902958,110740.0,110730.0,5.34115357]
[1747923971445,0.002,110770.0,110760.0,0.19862741]
[1747923971643,0.02005143,110790.0,110780.0,0.20761812]
[1747923971842,0.02005102,110790.0,110780.0,5.230538]
[1747923972092,0.19158575,110810.0,110800.0,0.18050541]
[1747923972444,0.0110238,110810.0,110800.0,5.9906208]
[1747923972650,0.0110238,110810.0,110800.0,5.99964518]
[1747923972651,0.002,110810.0,110800.0,5.99964518]
[1747923972852,0.002,110810.0,110800.0,6.42919074]
[1747923973193,0.002,110810.0,110800.0,5.74370126]
[1747923973432,0.002,110810.0,110800.0,6.4291509]
[1747923973631,0.002,110810.0,110800.0,6.4381276]
[1747923974061,0.04057058,110820.0,110810.0,0.2687615]
[1747923974261,0.04057058,110820.0,110810.0,5.7084015]
[1747923974483,0.03154759,110820.0,110810.0,5.9790015]
[1747923974615,0.04057066,110820.0,110810.0,5.9790015]
[1747923974812,0.03154759,110820.0,110810.0,6.06854706]
[1747923975093,0.002,110830.0,110820.0,0.27294277]
[1747923975283,0.01804296,110840.0,110830.0,0.25487929]
[1747923975439,0.1825318,110850.0,110830.0,0.25487929]
[1747923975440,0.21850763,110850.0,110840.0,0.0654]
[1747923975649,0.21850763,110850.0,110840.0,5.386]
[1747923975650,0.20061823,110850.0,110840.0,5.386]
[1747923975856,0.0021521,110850.0,110840.0,5.59350556]
[1747923976079,0.02921389,110850.0,110840.0,5.602527]
[1747923976255,0.03823484,110850.0,110840.0,5.602527]
[1747923976490,0.02921389,110850.0,110840.0,5.602527]
[1747923976691,0.2005083,110870.0,110860.0,0.19844791]
[1747923976924,0.011019,110870.0,110860.0,6.09862775]
[1747923977149,0.002,110870.0,110860.0,6.19719337]
[1747923977334,0.02905716,110870.0,110860.0,6.19719337]
[1747923977536,0.02905716,110870.0,110860.0,6.20621351]
[1747923977860,0.02905708,110870.0,110860.0,6.20621351]
[1747923978071,0.03807648,110870.0,110860.0,6.47677351]
[1747923978498,0.0380764,110870.0,110860.0,6.47677351]
[1747923978738,0.0470958,110870.0,110860.0,6.47677351]
[1747923979375,0.0470958,110870.0,110860.0,6.17066]
[1747923979376,0.20043033,110870.0,110860.0,6.17066]
[1747923979796,0.002,110870.0,110860.0,6.46767345]
[1747923980024,0.01101762,110890.0,110880.0,0.23943063]
[1747923980243,0.02054341,110890.0,110880.0,5.58239244]
[1747923980451,0.20991977,110890.0,110880.0,5.59141087]
[1747923980669,0.21893771,110890.0,110880.0,5.31191244]
[1747923980874,0.20090264,110890.0,110880.0,5.35248]
[1747923981082,0.20090264,110890.0,110880.0,5.54187393]
[1747923981287,0.20290264,110890.0,110880.0,5.55089252]
[1747923981497,0.02254332,110890.0,110880.0,5.56892913]
[1747923981709,0.02254332,110890.0,110880.0,5.58099252]
[1747923981710,0.21392017,110890.0,110880.0,5.58099252]
[1747923981915,0.03156126,110890.0,110880.0,5.59902913]
[1747923982119,0.21191952,110890.0,110880.0,5.59001095]
[1747923982328,0.22093738,110890.0,110880.0,5.59001095]
[1747923982560,0.04057847,110890.0,110880.0,5.59902913]
[1747923982746,0.04157847,110890.0,110880.0,5.59902913]
[1747923982954,0.22193738,110890.0,110880.0,5.59001095]
[1747923983154,0.22193738,110890.0,110880.0,5.6087185]
[1747923983368,0.20390256,110890.0,110880.0,5.05]
[1747923983586,0.29344812,110890.0,110880.0,0.3144]
[1747923983836,0.19846597,110850.0,110840.0,0.002]
[1747923984040,0.19846597,110850.0,110840.0,5.71892]
[1747923984247,0.19846597,110850.0,110840.0,0.7913]
[1747923984248,0.28801153,110850.0,110840.0,0.7913]
[1747923984462,0.19846597,110850.0,110840.0,1.0617]
[1747923984898,0.19846597,110850.0,110840.0,1.8583]
[1747923985136,0.19846597,110850.0,110840.0,1.8613]
[1747923985353,0.19846597,110850.0,110840.0,1.86234]
[1747923985555,0.19846597,110850.0,110840.0,1.85934]
[1747923986186,0.20146597,110850.0,110840.0,1.85934]
[1747923986645,0.20146597,110850.0,110840.0,1.85834]
[1747923986848,0.20346597,110850.0,110840.0,1.85834]
[1747923987053,0.20146597,110850.0,110840.0,1.85834]
[1747923987463,0.20246597,110850.0,110840.0,1.85834]
[1747923987704,0.19946597,110850.0,110840.0,1.85834]
[1747923987919,0.20046597,110850.0,110840.0,1.85834]
[1747923988132,0.29001153,110850.0,110840.0,0.11224]
[1747923988347,0.29001153,110850.0,110840.0,0.27244]
[1747923988584,0.63001153,110850.0,110840.0,0.27244]
[1747923988798,0.29001153,110850.0,110840.0,0.27244]
[1747923989496,0.69151153,110850.0,110840.0,0.00204]
[1747923990387,0.66021153,110850.0,110840.0,0.00204]
[1747923990812,0.65821153,110850.0,110840.0,0.00204]
[1747923991024,0.66121153,110850.0,110840.0,0.00204]
[1747923991239,0.69321153,110850.0,110840.0,0.00204]
[1747923991649,0.69621153,110850.0,110840.0,0.00204]
[1747923991872,0.66421153,110850.0,110840.0,0.00204]
[1747923992299,0.32421153,110850.0,110840.0,0.00204]
[1747923992708,0.35501153,110850.0,110840.0,0.00204]
[1747923992974,0.76309431,110850.0,110840.0,0.00204]
[1747923993183,1.42933431,110850.0,110840.0,0.00204]
[1747923994467,1.37579238,110850.0,110840.0,0.00204]
[1747923994707,1.37279238,110850.0,110840.0,0.00204]
[1747923994928,1.37579238,110850.0,110840.0,0.00204]
[1747923996288,0.70955238,110850.0,110840.0,0.00204]
[1747923996512,1.85470886,110850.0,110840.0,0.00204]
[1747923996733,1.93423037,110850.0,110840.0,0.00204]
[1747923997174,0.81507389,110850.0,110840.0,0.00204]
[1747923997360,1.40191238,110850.0,110840.0,0.00204]
[1747923997594,1.39191238,110850.0,110840.0,0.00204]
[1747923997815,0.71555238,110850.0,110840.0,0.00204]
[1747923998263,0.98599238,110850.0,110840.0,0.00204]
[1747923998479,0.70101153,110850.0,110840.0,0.00204]
[1747923998695,0.33021153,110850.0,110840.0,0.00204]
[1747923998903,0.30001153,110850.0,110840.0,0.39796]
[1747924000040,0.29501153,110850.0,110840.0,0.39796]
[1747924000291,0.29701153,110850.0,110840.0,0.39796]
[1747924000507,0.29701153,110850.0,110840.0,5.44796]
[1747924000758,0.20746597,110850.0,110840.0,5.44796]
[1747924000968,0.20146597,110850.0,110840.0,5.44796]
[1747924001204,0.20146597,110850.0,110840.0,5.66802228]
[1747924001426,0.18542399,110850.0,110840.0,5.51126]
[1747924001710,0.18342399,110850.0,110840.0,5.7184]
[1747924001939,0.18142399,110850.0,110840.0,5.749]
[1747924002382,0.002,110850.0,110840.0,6.32680532]
[1747924002596,0.18042028,110870.0,110860.0,0.58948794]
[1747924002597,0.00901884,110870.0,110860.0,0.58948794]
[1747924002815,0.02705708,110870.0,110860.0,6.0297735]
[1747924003033,0.03607648,110870.0,110860.0,6.02977367]
[1747924003491,0.21646792,110870.0,110860.0,6.02977383]
[1747924003711,0.21646792,110870.0,110860.0,6.0117338]
[1747924003933,0.21646792,110870.0,110860.0,6.04332334]
[1747924004751,0.20744908,110870.0,110860.0,6.02528323]
[1747924004920,0.20744908,110870.0,110860.0,6.0343032]
[1747924005344,0.20744908,110870.0,110860.0,6.02026309]
[1747924005509,0.19843008,110870.0,110860.0,6.02026317]
[1747924005705,0.18235891,110890.0,110870.0,0.19843017]
[1747924005927,0.18286692,110890.0,110880.0,5.71849447]
[1747924006139,0.18286692,110890.0,110880.0,5.71624]
[1747924007766,0.18286692,110890.0,110880.0,5.512688]
[1747924008013,0.18286692,110890.0,110880.0,4.07624]
[1747924008237,0.18286692,110890.0,110880.0,3.08614]
[1747924008463,0.18286692,110890.0,110860.0,0.01354951]
[1747924008464,0.19843,110870.0,110860.0,0.01354951]
[1747924008685,0.19843,110870.0,110860.0,5.69309572]
[1747924008888,0.19843,110870.0,110860.0,5.70211594]
[1747924009103,0.1894106,110870.0,110860.0,5.70211594]
[1747924009354,0.20744949,110870.0,110860.0,5.73431594]
[1747924009790,0.19843033,110870.0,110860.0,5.73431594]
[1747924010000,0.18941101,110870.0,110860.0,5.582288]
[1747924010215,0.18941101,110870.0,110860.0,5.852648]
[1747924010663,0.18941101,110870.0,110860.0,6.03305572]
[1747924010879,0.18941101,110870.0,110860.0,6.03605572]
[1747924011108,0.45950895,110870.0,110860.0,0.003]
[1747924011322,0.4740498,110870.0,110860.0,0.005]
[1747924011532,0.8140498,110870.0,110860.0,0.005]
[1747924011980,0.8140498,110870.0,110860.0,0.003]
[1747924012201,0.8150498,110870.0,110860.0,0.003]
[1747924012416,0.18942794,110860.0,110850.0,0.3958]
[1747924012662,0.3433735,110860.0,110850.0,0.3958]
[1747924013491,0.18944502,110850.0,110840.0,0.00404]
[1747924013718,0.34279058,110850.0,110840.0,0.39984]
[1747924014618,0.34379058,110850.0,110840.0,0.39984]
[1747924015363,0.34379058,110850.0,110840.0,0.67024]
[1747924016349,0.34479058,110850.0,110840.0,0.00404]
[1747924016552,0.31399058,110850.0,110840.0,0.67024]
[1747924016968,0.34699058,110850.0,110840.0,0.67024]
[1747924017374,0.34699058,110850.0,110840.0,0.00404]
[1747924017587,0.34699058,110850.0,110840.0,0.39988]
[1747924019104,0.36153143,110850.0,110840.0,0.39988]
[1747924019597,0.77368476,110850.0,110840.0,0.00404]
[1747924019826,0.70153143,110850.0,110840.0,0.00404]
[1747924020470,0.70053143,110850.0,110840.0,0.00404]
[1747924020912,0.70253143,110850.0,110840.0,0.00404]
[1747924021158,0.79155466,110850.0,110840.0,0.00404]
[1747924021376,1.92003114,110850.0,110840.0,0.00404]
[1747924021818,0.24515655,110830.0,110800.0,0.39728]
[1747924022045,0.26323745,110810.0,110800.0,0.27248]
[1747924022261,0.36732386,110810.0,110800.0,0.2726321]
[1747924022704,0.36732386,110810.0,110800.0,0.0021921]
[1747924023355,0.28808301,110810.0,110800.0,0.0021921]
[1747924024020,0.19853745,110810.0,110800.0,5.1886401]
[1747924024250,0.19852082,110820.0,110810.0,0.01804825]
[1747924024528,0.18947913,110830.0,110820.0,0.59249647]
[1747924024729,0.18947913,110830.0,110820.0,5.519928]
[1747924025166,0.18947913,110830.0,110820.0,0.34]
[1747924025380,0.18947913,110830.0,110820.0,1.00576]
[1747924025588,0.18947913,110830.0,110820.0,5.852208]
[1747924025811,0.18947913,110830.0,110820.0,5.855208]
[1747924026253,0.18947913,110830.0,110820.0,2.22806]
[1747924026928,0.18947913,110830.0,110820.0,2.22706]
[1747924027200,0.00902217,110830.0,110820.0,2.51182297]
[1747924027370,0.18342399,110850.0,110840.0,0.373]
[1747924027371,0.20146589,110850.0,110840.0,0.373]
[1747924027609,0.20146589,110850.0,110840.0,5.879328]
[1747924028047,0.20146589,110850.0,110840.0,6.10821204]
[1747924028048,0.01202063,110850.0,110840.0,6.10821204]
[1747924028282,0.21950747,110850.0,110840.0,6.11723364]
[1747924028505,0.02104133,110850.0,110840.0,6.21580064]
[1747924028726,0.002,110870.0,110860.0,0.61928794]
[1747924028942,0.002,110870.0,110860.0,6.23554235]
[1747924029166,0.01101892,110870.0,110860.0,6.23554235]
[1747924029387,0.002,110870.0,110860.0,6.23554235]
[1747924029612,0.01101892,110870.0,110860.0,6.23554235]
[1747924029846,0.002,110870.0,110860.0,6.24488321]
[1747924030076,0.02003531,110890.0,110880.0,0.61293079]
[1747924030269,0.20991952,110890.0,110880.0,5.7207606]
[1747924030513,0.02054283,110890.0,110880.0,5.81932475]
[1747924030730,0.22795516,110890.0,110880.0,5.83736153]
[1747924030930,0.21893787,110890.0,110880.0,5.83736169]
[1747924031067,0.21893787,110890.0,110880.0,5.83736129]
[1747924031503,0.20090272,110890.0,110880.0,5.456848]
[1747924031705,0.20090272,110890.0,110880.0,5.186448]
[1747924031910,0.20190272,110890.0,110880.0,5.852048]
[1747924032110,0.27405605,110890.0,110880.0,1.0056]
[1747924032536,0.36360161,110890.0,110880.0,1.0056]
[1747924033120,0.27505605,110890.0,110880.0,1.0056]
[1747924033330,0.20290272,110890.0,110880.0,3.2323]
[1747924033553,0.29244828,110890.0,110880.0,1.1793]
[1747924033759,0.29244828,110890.0,110880.0,1.0056]
[1747924034884,0.20290272,110890.0,110880.0,5.852048]
[1747924035281,0.29244828,110890.0,110880.0,5.186448]
[1747924035482,0.29244828,110890.0,110880.0,1.79058]
[1747924036162,0.29244828,110890.0,110880.0,1.00548]
[1747924036629,0.20290272,110890.0,110880.0,1.95027393]
[1747924036846,0.20290272,110890.0,110880.0,1.76088]
[1747924037335,0.29244828,110890.0,110880.0,0.73512]
[1747924037582,0.29244828,110890.0,110880.0,1.00548]
[1747924038890,0.29244828,110890.0,110880.0,0.73512]
[1747924039120,0.18039144,110870.0,110860.0,0.39508]
[1747924039329,0.269937,110870.0,110860.0,0.66544]
[1747924039989,0.18039144,110870.0,110860.0,3.71384]
[1747924040213,0.18039144,110870.0,110860.0,4.05384]
[1747924041282,0.18039144,110870.0,110860.0,4.11814]